[Event "Titled Tuesday Blitz June 13 Late 2023"]
[White "Aravindh, Chithambaram VR."]
[Black "Martinez Alcantara, Jose Eduardo"]
[WhiteFideId "5072786"]
[BlackFideId "3805662"]
[WhiteElo "2596"]
[BlackElo "2711"]
[Result "1-0"]
[Round "6"]
[TimeControl "180+2"]
[Date "2023.06.13"]
[WhiteClock "0:00:07"]
[BlackClock "0:00:13"]
[Board "9"]

1. d4 {[%clk 0:02:59]}  Nf6 {[%clk 0:02:59]} 2. Nf3 {[%clk 0:02:58]}  e6 {[%clk 0:03:00]} 3. e3 {[%clk 0:02:59]}  b6 {[%clk 0:03:00]} 4. Bd3 {[%clk 0:02:58]}  Bb7 {[%clk 0:03:00]} 5. O-O {[%clk 0:02:58]}  g6 {[%clk 0:03:01]} 6. c4 {[%clk 0:02:55]}  Bg7 {[%clk 0:03:00]} 7. Nc3 {[%clk 0:02:56]}  d6 {[%clk 0:03:01]} 8. e4 {[%clk 0:02:55]}  O-O {[%clk 0:02:59]} 9. h3 {[%clk 0:02:55]}  Nbd7 {[%clk 0:02:57]} 10. Bg5 {[%clk 0:02:51]}  h6 {[%clk 0:02:50]} 11. Be3 {[%clk 0:02:50]}  c5 {[%clk 0:02:35]} 12. d5 {[%clk 0:02:45]}  e5 {[%clk 0:02:36]} 13. a3 {[%clk 0:02:37]}  Bc8 {[%clk 0:02:33]} 14. b4 {[%clk 0:02:34]}  Ne8 {[%clk 0:02:29]} 15. Qc2 {[%clk 0:02:30]}  Ndf6 {[%clk 0:02:14]} 16. Rfb1 {[%clk 0:02:10]}  Nh5 {[%clk 0:02:13]} 17. Qd2 {[%clk 0:02:09]}  Nf4 {[%clk 0:02:12]} 18. Bf1 {[%clk 0:02:09]}  g5 {[%clk 0:01:50]} 19. a4 {[%clk 0:02:02]}  f5 {[%clk 0:01:48]} 20. a5 {[%clk 0:01:53]}  fxe4 {[%clk 0:01:48]} 21. Nxe4 {[%clk 0:01:51]}  Bf5 {[%clk 0:01:48]} 22. Qc2 {[%clk 0:01:44]}  Rc8 {[%clk 0:01:42]} 23. axb6 {[%clk 0:01:41]}  axb6 {[%clk 0:01:43]} 24. bxc5 {[%clk 0:01:40]}  bxc5 {[%clk 0:01:44]} 25. Nfd2 {[%clk 0:01:34]}  Rc7 {[%clk 0:01:38]} 26. Ra6 {[%clk 0:01:28]}  Rcf7 {[%clk 0:01:34]} 27. Qa4 {[%clk 0:01:21]}  Qe7 {[%clk 0:01:25]} 28. Rbb6 {[%clk 0:01:05]}  Bc8 {[%clk 0:01:04]} 29. Ra8 {[%clk 0:00:56]}  Bd7 {[%clk 0:00:56]} 30. Qa6 {[%clk 0:00:56]}  g4 {[%clk 0:00:47]} 31. hxg4 {[%clk 0:00:57]}  Bxg4 {[%clk 0:00:47]} 32. Rbb8 {[%clk 0:00:23]}  Nc7 {[%clk 0:00:33]} 33. Rxf8+ {[%clk 0:00:23]}  Bxf8 {[%clk 0:00:22]} 34. Rxf8+ {[%clk 0:00:22]}  Rxf8 {[%clk 0:00:22]} 35. Qxd6 {[%clk 0:00:23]}  Qxd6 {[%clk 0:00:22]} 36. Nxd6 {[%clk 0:00:24]}  Na6 {[%clk 0:00:16]} 37. f3 {[%clk 0:00:20]}  Bd7 {[%clk 0:00:10]} 38. N2e4 {[%clk 0:00:18]}  Rb8 {[%clk 0:00:11]} 39. Nf6+ {[%clk 0:00:09]}  Kg7 {[%clk 0:00:12]} 40. Nxd7 {[%clk 0:00:10]}  Rb1 {[%clk 0:00:11]} 41. Nxe5 {[%clk 0:00:08]}  Ne2+ {[%clk 0:00:12]} 42. Kf2 {[%clk 0:00:08]}  Nc3 {[%clk 0:00:13]} 43. Nf5+ {[%clk 0:00:08]}  Kf6 {[%clk 0:00:12]} 44. Bd3 {[%clk 0:00:09]}  Kxe5 {[%clk 0:00:11]} 45. Bxb1 {[%clk 0:00:09]}  Nxb1 {[%clk 0:00:12]} 46. Nxh6 {[%clk 0:00:09]}  Na3 {[%clk 0:00:12]} 47. Ng4+ {[%clk 0:00:09]}  Kf5 {[%clk 0:00:13]} 48. Bc1 {[%clk 0:00:07]}  Nxc4 {[%clk 0:00:13]} 49. Ne3+ {[%clk 0:00:07]}  Nxe3 {[%clk 0:00:14]} 50. Kxe3 {[%clk 0:00:07]}  Ke5 {[%clk 0:00:15]} 51. g4 {[%clk 0:00:07]}  Kxd5 {[%clk 0:00:15]} 52. f4 {[%clk 0:00:07]}  Nb4 {[%clk 0:00:16]} 53. f5 {[%clk 0:00:07]}  Kd6 {[%clk 0:00:16]} 54. Ke4 {[%clk 0:00:07]}  c4 {[%clk 0:00:15]} 55. Ba3 {[%clk 0:00:07]}  Kc5 {[%clk 0:00:15]} 56. f6 {[%clk 0:00:07]}  c3 {[%clk 0:00:13]} 57. f7 {[%clk 0:00:07]} 1-0


[Site "https://www.chess.com"]

[Event "Titled Tuesday Blitz June 13 Late 2023"]
[White "Hambleton, Aman"]
[Black "Bortnyk, Olexandr"]
[WhiteFideId "2606577"]
[BlackFideId "14120828"]
[WhiteElo "2511"]
[BlackElo "2733"]
[Result "0-1"]
[Round "6"]
[TimeControl "180+2"]
[Date "2023.06.13"]
[WhiteClock "0:00:00"]
[BlackClock "0:00:15"]
[Board "12"]

1. d4 {[%clk 0:02:55]}  Nf6 {[%clk 0:02:59]} 2. c4 {[%clk 0:02:52]}  b6 {[%clk 0:02:55]} 3. f3 {[%clk 0:02:37]}  Nc6 {[%clk 0:02:55]} 4. d5 {[%clk 0:02:26]}  Ne5 {[%clk 0:02:54]} 5. e4 {[%clk 0:02:26]}  e6 {[%clk 0:02:55]} 6. Be3 {[%clk 0:02:24]}  Bb4+ {[%clk 0:02:54]} 7. Nd2 {[%clk 0:02:22]}  Qe7 {[%clk 0:02:53]} 8. Be2 {[%clk 0:01:48]}  exd5 {[%clk 0:02:28]} 9. cxd5 {[%clk 0:01:44]}  Nxd5 {[%clk 0:02:28]} 10. exd5 {[%clk 0:01:20]}  Nd3+ {[%clk 0:02:19]} 11. Bxd3 {[%clk 0:01:19]}  Qxe3+ {[%clk 0:02:20]} 12. Be2 {[%clk 0:01:18]}  O-O {[%clk 0:01:56]} 13. a3 {[%clk 0:01:15]}  Be7 {[%clk 0:01:40]} 14. Ne4 {[%clk 0:00:56]}  f5 {[%clk 0:01:38]} 15. Qd2 {[%clk 0:00:54]}  Qb3 {[%clk 0:01:29]} 16. Nc3 {[%clk 0:00:54]}  Re8 {[%clk 0:01:14]} 17. Nh3 {[%clk 0:00:29]}  Bc5 {[%clk 0:01:12]} 18. Kf1 {[%clk 0:00:08]}  Be3 {[%clk 0:01:09]} 19. Qd3 {[%clk 0:00:02]}  Qxb2 {[%clk 0:01:09]} 20. Rb1 {[%clk 0:00:02]}  Qxa3 {[%clk 0:01:09]} 21. Nd1 {[%clk 0:00:02]}  Qc5 {[%clk 0:00:58]} 22. Nxe3 {[%clk 0:00:02]}  Rxe3 {[%clk 0:00:59]} 23. Qd2 {[%clk 0:00:03]}  Rc3 {[%clk 0:00:47]} 24. Nf4 {[%clk 0:00:02]}  Rc2 {[%clk 0:00:42]} 25. Qd1 {[%clk 0:00:01]}  a5 {[%clk 0:00:41]} 26. Nd3 {[%clk 0:00:01]}  Qc3 {[%clk 0:00:41]} 27. Rc1 {[%clk 0:00:01]}  Rxc1 {[%clk 0:00:41]} 28. Qxc1 {[%clk 0:00:02]}  Qd4 {[%clk 0:00:39]} 29. Qxc7 {[%clk 0:00:02]}  Ba6 {[%clk 0:00:38]} 30. Qe5 {[%clk 0:00:02]}  Qxe5 {[%clk 0:00:35]} 31. Nxe5 {[%clk 0:00:03]}  Bxe2+ {[%clk 0:00:35]} 32. Kxe2 {[%clk 0:00:03]}  Re8 {[%clk 0:00:36]} 33. f4 {[%clk 0:00:02]}  d6 {[%clk 0:00:37]} 34. Rb1 {[%clk 0:00:03]}  dxe5 {[%clk 0:00:38]} 35. Rxb6 {[%clk 0:00:03]}  exf4+ {[%clk 0:00:37]} 36. Kf3 {[%clk 0:00:04]}  g5 {[%clk 0:00:32]} 37. Ra6 {[%clk 0:00:03]}  Re3+ {[%clk 0:00:30]} 38. Kf2 {[%clk 0:00:04]}  Rd3 {[%clk 0:00:23]} 39. Rxa5 {[%clk 0:00:04]}  Kf7 {[%clk 0:00:23]} 40. h4 {[%clk 0:00:02]}  gxh4 {[%clk 0:00:18]} 41. Ra4 {[%clk 0:00:02]}  Kg6 {[%clk 0:00:18]} 42. Rxf4 {[%clk 0:00:02]}  Kg5 {[%clk 0:00:19]} 43. Rc4 {[%clk 0:00:01]}  Rd2+ {[%clk 0:00:17]} 44. Kf3 {[%clk 0:00:02]}  Rxd5 {[%clk 0:00:18]} 45. Rc3 {[%clk 0:00:02]}  Rd4 {[%clk 0:00:17]} 46. Kf2 {[%clk 0:00:02]}  Rf4+ {[%clk 0:00:16]} 47. Kg1 {[%clk 0:00:02]}  h6 {[%clk 0:00:15]} 48. Kh2 {[%clk 0:00:03]}  Re4 {[%clk 0:00:15]} 49. Rd3 {[%clk 0:00:03]}  Re2 {[%clk 0:00:15]} 50. Rc3 {[%clk 0:00:03]}  f4 {[%clk 0:00:15]} 51. Kh3 {[%clk 0:00:00]}  Re3+ {[%clk 0:00:15]} 0-1


[Site "https://www.chess.com"]

[Event "Titled Tuesday Blitz June 13 Late 2023"]
[White "Babazada, Khazar"]
[Black "Santos Ruiz, Miguel"]
[WhiteFideId "13413554"]
[BlackFideId "22291482"]
[WhiteElo "2369"]
[BlackElo "2499"]
[Result "0-1"]
[Round "6"]
[TimeControl "180+2"]
[Date "2023.06.13"]
[WhiteClock "0:00:07"]
[BlackClock "0:00:04"]
[Board "14"]

1. e4 {[%clk 0:02:45]}  c5 {[%clk 0:02:59]} 2. Nf3 {[%clk 0:02:44]}  d6 {[%clk 0:02:58]} 3. d4 {[%clk 0:02:45]}  cxd4 {[%clk 0:02:59]} 4. Nxd4 {[%clk 0:02:45]}  Nf6 {[%clk 0:02:59]} 5. Nc3 {[%clk 0:02:46]}  a6 {[%clk 0:02:59]} 6. Be2 {[%clk 0:02:47]}  e6 {[%clk 0:02:58]} 7. g4 {[%clk 0:02:47]}  b5 {[%clk 0:02:53]} 8. g5 {[%clk 0:02:47]}  Nfd7 {[%clk 0:02:53]} 9. h4 {[%clk 0:02:47]}  Bb7 {[%clk 0:02:51]} 10. a3 {[%clk 0:02:47]}  Nc6 {[%clk 0:02:33]} 11. Nxc6 {[%clk 0:02:47]}  Bxc6 {[%clk 0:02:33]} 12. Be3 {[%clk 0:02:48]}  Be7 {[%clk 0:02:27]} 13. Qd4 {[%clk 0:02:46]}  O-O {[%clk 0:01:55]} 14. O-O-O {[%clk 0:02:45]}  Rb8 {[%clk 0:01:46]} 15. Rdg1 {[%clk 0:02:22]}  Qa5 {[%clk 0:01:25]} 16. Na2 {[%clk 0:02:19]}  e5 {[%clk 0:01:20]} 17. Qd3 {[%clk 0:01:56]}  Nc5 {[%clk 0:01:19]} 18. Bxc5 {[%clk 0:01:56]}  dxc5 {[%clk 0:01:20]} 19. h5 {[%clk 0:01:57]}  c4 {[%clk 0:01:04]} 20. Qg3 {[%clk 0:01:25]}  b4 {[%clk 0:00:51]} 21. Bxc4 {[%clk 0:01:23]}  bxa3 {[%clk 0:00:50]} 22. b3 {[%clk 0:01:23]}  Kh8 {[%clk 0:00:22]} 23. Rd1 {[%clk 0:01:11]}  Qc5 {[%clk 0:00:20]} 24. h6 {[%clk 0:01:10]}  g6 {[%clk 0:00:17]} 25. Bd5 {[%clk 0:01:09]}  f6 {[%clk 0:00:13]} 26. gxf6 {[%clk 0:01:05]}  Bxf6 {[%clk 0:00:13]} 27. Rh3 {[%clk 0:01:05]}  Bxd5 {[%clk 0:00:10]} 28. Rxd5 {[%clk 0:01:05]}  Qb6 {[%clk 0:00:08]} 29. Rd7 {[%clk 0:01:01]}  Rbc8 {[%clk 0:00:08]} 30. Qd3 {[%clk 0:00:35]}  Qxf2 {[%clk 0:00:07]} 31. Rh1 {[%clk 0:00:35]}  Bg5+ {[%clk 0:00:06]} 32. Kb1 {[%clk 0:00:35]}  Qf3 {[%clk 0:00:05]} 33. Qxf3 {[%clk 0:00:25]}  Rxf3 {[%clk 0:00:06]} 34. Nb4 {[%clk 0:00:26]}  Bd2 {[%clk 0:00:02]} 35. Nc6 {[%clk 0:00:23]}  Bc3 {[%clk 0:00:02]} 36. Rhd1 {[%clk 0:00:21]}  Rcf8 {[%clk 0:00:02]} 37. Rc7 {[%clk 0:00:15]}  Rf1 {[%clk 0:00:02]} 38. Rd7 {[%clk 0:00:14]}  Kg8 {[%clk 0:00:02]} 39. Ka2 {[%clk 0:00:12]}  Rxd1 {[%clk 0:00:02]} 40. Rxd1 {[%clk 0:00:11]}  Rf2 {[%clk 0:00:02]} 41. Kxa3 {[%clk 0:00:11]}  Rxc2 {[%clk 0:00:02]} 42. Ne7+ {[%clk 0:00:10]}  Kf7 {[%clk 0:00:02]} 43. Rd7 {[%clk 0:00:11]}  Ke6 {[%clk 0:00:03]} 44. Ra7 {[%clk 0:00:09]}  Bd4 {[%clk 0:00:03]} 45. Rxa6+ {[%clk 0:00:06]}  Kxe7 {[%clk 0:00:04]} 46. b4 {[%clk 0:00:07]}  Rc3+ {[%clk 0:00:03]} 47. Ka4 {[%clk 0:00:07]}  Rc1 {[%clk 0:00:04]} 48. Kb5 {[%clk 0:00:07]}  Kf7 {[%clk 0:00:03]} 49. Rd6 {[%clk 0:00:07]}  g5 {[%clk 0:00:04]} 50. Rd7+ {[%clk 0:00:08]}  Kg6 {[%clk 0:00:04]} 51. Rd6+ {[%clk 0:00:08]}  Kh5 {[%clk 0:00:05]} 52. Rc6 {[%clk 0:00:07]}  Rxc6 {[%clk 0:00:04]} 0-1


[Site "https://www.chess.com"]

[Event "Titled Tuesday Blitz June 13 Late 2023"]
[White "Fressinet, Laurent"]
[Black "Djordjevic, Vuk"]
[WhiteFideId "608742"]
[BlackFideId "902098"]
[WhiteElo "2633"]
[BlackElo "2463"]
[Result "1-0"]
[Round "6"]
[TimeControl "180+2"]
[Date "2023.06.13"]
[WhiteClock "0:00:24"]
[BlackClock "0:00:02"]
[Board "15"]

1. d4 {[%clk 0:03:00]}  Nf6 {[%clk 0:03:00]} 2. Nf3 {[%clk 0:03:01]}  e6 {[%clk 0:03:00]} 3. Bg5 {[%clk 0:03:01]}  c5 {[%clk 0:02:59]} 4. e3 {[%clk 0:03:00]}  Qb6 {[%clk 0:02:48]} 5. Nbd2 {[%clk 0:02:58]}  Nc6 {[%clk 0:02:45]} 6. Nc4 {[%clk 0:02:55]}  Qd8 {[%clk 0:02:45]} 7. d5 {[%clk 0:02:53]}  exd5 {[%clk 0:02:40]} 8. Bxf6 {[%clk 0:02:53]}  Qxf6 {[%clk 0:02:38]} 9. Qxd5 {[%clk 0:02:53]}  Qe6 {[%clk 0:02:27]} 10. e4 {[%clk 0:02:41]}  Nb4 {[%clk 0:02:10]} 11. Qd2 {[%clk 0:02:21]}  Be7 {[%clk 0:01:08]} 12. c3 {[%clk 0:02:11]}  d5 {[%clk 0:00:41]} 13. Ne3 {[%clk 0:01:53]}  dxe4 {[%clk 0:00:41]} 14. Bc4 {[%clk 0:01:52]}  Qf6 {[%clk 0:00:10]} 15. Ng1 {[%clk 0:01:44]}  Nd3+ {[%clk 0:00:05]} 16. Bxd3 {[%clk 0:01:43]}  exd3 {[%clk 0:00:06]} 17. Qxd3 {[%clk 0:01:40]}  O-O {[%clk 0:00:06]} 18. Nf3 {[%clk 0:01:41]}  Rd8 {[%clk 0:00:06]} 19. Qe4 {[%clk 0:01:38]}  Be6 {[%clk 0:00:06]} 20. O-O {[%clk 0:01:37]}  b6 {[%clk 0:00:06]} 21. a4 {[%clk 0:01:36]}  Rab8 {[%clk 0:00:04]} 22. Ne5 {[%clk 0:01:34]}  Re8 {[%clk 0:00:02]} 23. Nc6 {[%clk 0:01:30]}  Ra8 {[%clk 0:00:01]} 24. Nd5 {[%clk 0:01:21]}  Bxd5 {[%clk 0:00:01]} 25. Qxd5 {[%clk 0:01:22]}  Qd6 {[%clk 0:00:01]} 26. Rad1 {[%clk 0:01:18]}  Qxd5 {[%clk 0:00:01]} 27. Rxd5 {[%clk 0:01:19]}  Bf8 {[%clk 0:00:02]} 28. Rd7 {[%clk 0:01:18]}  a6 {[%clk 0:00:03]} 29. Rfd1 {[%clk 0:01:14]}  Re6 {[%clk 0:00:03]} 30. Nd8 {[%clk 0:01:11]}  Re2 {[%clk 0:00:03]} 31. R7d2 {[%clk 0:01:05]}  Rxd2 {[%clk 0:00:02]} 32. Rxd2 {[%clk 0:01:06]}  Be7 {[%clk 0:00:03]} 33. Nc6 {[%clk 0:01:06]}  Bf6 {[%clk 0:00:04]} 34. Rd6 {[%clk 0:01:03]}  b5 {[%clk 0:00:04]} 35. a5 {[%clk 0:01:01]}  Kf8 {[%clk 0:00:04]} 36. Kf1 {[%clk 0:01:00]}  Re8 {[%clk 0:00:04]} 37. Na7 {[%clk 0:00:56]}  Re6 {[%clk 0:00:04]} 38. Rxe6 {[%clk 0:00:56]}  fxe6 {[%clk 0:00:05]} 39. Nxb5 {[%clk 0:00:56]}  Bd8 {[%clk 0:00:04]} 40. Na3 {[%clk 0:00:53]}  Bxa5 {[%clk 0:00:04]} 41. Nc4 {[%clk 0:00:54]}  Bc7 {[%clk 0:00:04]} 42. Ke2 {[%clk 0:00:54]}  Bxh2 {[%clk 0:00:02]} 43. g3 {[%clk 0:00:52]}  h5 {[%clk 0:00:02]} 44. Kf3 {[%clk 0:00:52]}  Bg1 {[%clk 0:00:01]} 45. Kg2 {[%clk 0:00:52]}  Bxf2 {[%clk 0:00:01]} 46. Kxf2 {[%clk 0:00:53]}  Ke7 {[%clk 0:00:02]} 47. Kf3 {[%clk 0:00:51]}  g5 {[%clk 0:00:02]} 48. Nd2 {[%clk 0:00:49]}  h4 {[%clk 0:00:02]} 49. Ne4 {[%clk 0:00:45]}  hxg3 {[%clk 0:00:02]} 50. Nxc5 {[%clk 0:00:43]}  a5 {[%clk 0:00:02]} 51. Nb7 {[%clk 0:00:39]}  a4 {[%clk 0:00:01]} 52. Nc5 {[%clk 0:00:39]}  Kd6 {[%clk 0:00:02]} 53. Nxa4 {[%clk 0:00:38]}  Kd5 {[%clk 0:00:03]} 54. b3 {[%clk 0:00:36]}  e5 {[%clk 0:00:03]} 55. Kxg3 {[%clk 0:00:36]}  e4 {[%clk 0:00:03]} 56. c4+ {[%clk 0:00:29]}  Kd4 {[%clk 0:00:03]} 57. c5 {[%clk 0:00:29]}  e3 {[%clk 0:00:03]} 58. c6 {[%clk 0:00:27]}  Kd3 {[%clk 0:00:03]} 59. Nb2+ {[%clk 0:00:24]}  Kc3 {[%clk 0:00:02]} 60. Nd1+ {[%clk 0:00:24]} 1-0


[Site "https://www.chess.com"]

[Event "Titled Tuesday Blitz June 13 Late 2023"]
[White "Klukin, Kirill"]
[Black "Tari, Aryan"]
[WhiteFideId "24199273"]
[BlackFideId "1510045"]
[WhiteElo "2344"]
[BlackElo "2586"]
[Result "1-0"]
[Round "6"]
[TimeControl "180+2"]
[Date "2023.06.13"]
[WhiteClock "0:00:58"]
[BlackClock "0:00:01"]
[Board "16"]

1. d4 {[%clk 0:03:00]}  d5 {[%clk 0:02:56]} 2. c4 {[%clk 0:03:01]}  e6 {[%clk 0:02:56]} 3. Nc3 {[%clk 0:03:01]}  Bb4 {[%clk 0:02:56]} 4. Nf3 {[%clk 0:03:00]}  dxc4 {[%clk 0:02:56]} 5. e3 {[%clk 0:02:52]}  b5 {[%clk 0:02:56]} 6. a4 {[%clk 0:02:51]}  c6 {[%clk 0:02:56]} 7. Bd2 {[%clk 0:02:52]}  a5 {[%clk 0:02:47]} 8. axb5 {[%clk 0:02:51]}  Bxc3 {[%clk 0:02:47]} 9. Bxc3 {[%clk 0:02:51]}  cxb5 {[%clk 0:02:47]} 10. b3 {[%clk 0:02:52]}  Bb7 {[%clk 0:02:41]} 11. bxc4 {[%clk 0:02:52]}  b4 {[%clk 0:02:42]} 12. Bb2 {[%clk 0:02:52]}  Nf6 {[%clk 0:02:39]} 13. Bd3 {[%clk 0:02:52]}  O-O {[%clk 0:02:37]} 14. O-O {[%clk 0:02:53]}  Nbd7 {[%clk 0:02:25]} 15. Nd2 {[%clk 0:02:52]}  Qc7 {[%clk 0:01:54]} 16. Bc2 {[%clk 0:02:22]}  e5 {[%clk 0:01:49]} 17. d5 {[%clk 0:02:17]}  Nc5 {[%clk 0:01:41]} 18. f4 {[%clk 0:02:10]}  Nfd7 {[%clk 0:01:16]} 19. fxe5 {[%clk 0:01:52]}  Nxe5 {[%clk 0:01:17]} 20. Bxh7+ {[%clk 0:01:42]}  Kxh7 {[%clk 0:01:17]} 21. Qh5+ {[%clk 0:01:42]}  Kg8 {[%clk 0:01:18]} 22. Bxe5 {[%clk 0:01:42]}  Qe7 {[%clk 0:01:19]} 23. Bd4 {[%clk 0:01:37]}  Nd7 {[%clk 0:00:58]} 24. Rf3 {[%clk 0:01:30]}  Ra6 {[%clk 0:00:51]} 25. Rg3 {[%clk 0:01:24]}  Rg6 {[%clk 0:00:39]} 26. Rxg6 {[%clk 0:01:16]}  fxg6 {[%clk 0:00:40]} 27. Qxg6 {[%clk 0:01:17]}  Nf6 {[%clk 0:00:30]} 28. Rxa5 {[%clk 0:01:11]}  b3 {[%clk 0:00:29]} 29. Rb5 {[%clk 0:01:04]}  Qa3 {[%clk 0:00:27]} 30. Rxb7 {[%clk 0:00:58]}  Qc1+ {[%clk 0:00:01]} 31. Nf1 {[%clk 0:00:58]} 1-0


[Site "https://www.chess.com"]

[Event "Titled Tuesday Blitz June 13 Late 2023"]
[White "Dardha, Daniel"]
[Black "Nazari, Arad"]
[WhiteFideId "240990"]
[BlackFideId "12577324"]
[WhiteElo "2572"]
[BlackElo "2175"]
[Result "1-0"]
[Round "6"]
[TimeControl "180+2"]
[Date "2023.06.13"]
[WhiteClock "0:00:10"]
[BlackClock "0:00:00"]
[Board "18"]

1. e4 {[%clk 0:03:00]}  c5 {[%clk 0:03:00]} 2. Nc3 {[%clk 0:02:59]}  d6 {[%clk 0:02:59]} 3. Nge2 {[%clk 0:02:59]}  Nf6 {[%clk 0:02:58]} 4. g3 {[%clk 0:02:57]}  g6 {[%clk 0:02:58]} 5. Bg2 {[%clk 0:02:57]}  Bg7 {[%clk 0:02:58]} 6. d4 {[%clk 0:02:58]}  cxd4 {[%clk 0:02:58]} 7. Nxd4 {[%clk 0:02:58]}  O-O {[%clk 0:02:56]} 8. O-O {[%clk 0:02:58]}  Nc6 {[%clk 0:02:55]} 9. Nde2 {[%clk 0:02:58]}  a6 {[%clk 0:02:47]} 10. a4 {[%clk 0:02:57]}  Rb8 {[%clk 0:02:46]} 11. Nd5 {[%clk 0:02:57]}  b5 {[%clk 0:02:43]} 12. axb5 {[%clk 0:02:58]}  axb5 {[%clk 0:02:43]} 13. Bg5 {[%clk 0:02:56]}  Nxd5 {[%clk 0:02:38]} 14. exd5 {[%clk 0:02:57]}  Ne5 {[%clk 0:02:38]} 15. Nd4 {[%clk 0:02:49]}  h6 {[%clk 0:02:33]} 16. Bf4 {[%clk 0:02:45]}  Bd7 {[%clk 0:02:27]} 17. b3 {[%clk 0:02:43]}  g5 {[%clk 0:02:17]} 18. Bc1 {[%clk 0:02:36]}  Qb6 {[%clk 0:02:15]} 19. Bb2 {[%clk 0:02:30]}  Ra8 {[%clk 0:01:37]} 20. Kh1 {[%clk 0:02:22]}  Rxa1 {[%clk 0:01:27]} 21. Qxa1 {[%clk 0:02:21]}  Ng4 {[%clk 0:01:10]} 22. h3 {[%clk 0:02:14]}  Nf6 {[%clk 0:01:07]} 23. Re1 {[%clk 0:02:08]}  Re8 {[%clk 0:01:01]} 24. Kg1 {[%clk 0:01:51]}  Nh5 {[%clk 0:00:56]} 25. Re3 {[%clk 0:01:42]}  Bf6 {[%clk 0:00:47]} 26. Nc6 {[%clk 0:01:33]}  Bxc6 {[%clk 0:00:29]} 27. dxc6 {[%clk 0:01:32]}  Kg7 {[%clk 0:00:15]} 28. Bf3 {[%clk 0:00:47]}  Bxb2 {[%clk 0:00:15]} 29. Qxb2+ {[%clk 0:00:48]}  Nf6 {[%clk 0:00:16]} 30. Bg2 {[%clk 0:00:27]}  e5 {[%clk 0:00:16]} 31. Rd3 {[%clk 0:00:24]}  Qc5 {[%clk 0:00:14]} 32. b4 {[%clk 0:00:22]}  Qc4 {[%clk 0:00:05]} 33. Rxd6 {[%clk 0:00:22]}  Qe2 {[%clk 0:00:05]} 34. Qc3 {[%clk 0:00:20]}  Ne4 {[%clk 0:00:02]} 35. Bxe4 {[%clk 0:00:16]}  Qxe4 {[%clk 0:00:03]} 36. c7 {[%clk 0:00:16]}  Ra8 {[%clk 0:00:04]} 37. c8=Q {[%clk 0:00:09]}  Rxc8 {[%clk 0:00:02]} 38. Qxc8 {[%clk 0:00:10]}  Qe1+ {[%clk 0:00:03]} 39. Kg2 {[%clk 0:00:11]}  Qe4+ {[%clk 0:00:04]} 40. Kh2 {[%clk 0:00:11]}  Qe1 {[%clk 0:00:00]} 41. Qf5 {[%clk 0:00:10]} 1-0


[Site "https://www.chess.com"]

[Event "Titled Tuesday Blitz June 13 Late 2023"]
[White "Gokerkan, Cem Kaan"]
[Black "Zakhartsov, Vladimir"]
[WhiteFideId "6336760"]
[BlackFideId "4145097"]
[WhiteElo "2365"]
[BlackElo "2508"]
[Result "0-1"]
[Round "6"]
[TimeControl "180+2"]
[Date "2023.06.13"]
[WhiteClock "0:00:00"]
[BlackClock "0:00:17"]
[Board "19"]

1. e4 {[%clk 0:03:00]}  c5 {[%clk 0:02:57]} 2. Nf3 {[%clk 0:03:01]}  d6 {[%clk 0:02:56]} 3. d4 {[%clk 0:03:01]}  Nf6 {[%clk 0:02:57]} 4. Nc3 {[%clk 0:03:01]}  cxd4 {[%clk 0:02:57]} 5. Nxd4 {[%clk 0:03:02]}  g6 {[%clk 0:02:58]} 6. Be3 {[%clk 0:03:02]}  Bg7 {[%clk 0:02:58]} 7. f3 {[%clk 0:03:03]}  h5 {[%clk 0:02:55]} 8. Qd2 {[%clk 0:03:03]}  a6 {[%clk 0:02:56]} 9. Bc4 {[%clk 0:02:59]}  b5 {[%clk 0:02:55]} 10. Be2 {[%clk 0:02:55]}  Bb7 {[%clk 0:02:54]} 11. O-O {[%clk 0:02:55]}  Nbd7 {[%clk 0:02:54]} 12. a4 {[%clk 0:02:53]}  b4 {[%clk 0:02:53]} 13. Na2 {[%clk 0:02:54]}  a5 {[%clk 0:02:54]} 14. c3 {[%clk 0:02:54]}  bxc3 {[%clk 0:02:53]} 15. Nxc3 {[%clk 0:02:55]}  O-O {[%clk 0:02:52]} 16. Bb5 {[%clk 0:02:52]}  Nc5 {[%clk 0:02:51]} 17. Rfb1 {[%clk 0:02:49]}  e5 {[%clk 0:02:51]} 18. Nc6 {[%clk 0:02:25]}  Bxc6 {[%clk 0:02:38]} 19. Bxc6 {[%clk 0:02:26]}  Rc8 {[%clk 0:02:12]} 20. Bxc5 {[%clk 0:02:26]}  dxc5 {[%clk 0:02:09]} 21. Qxd8 {[%clk 0:02:23]}  Rfxd8 {[%clk 0:02:09]} 22. Bd5 {[%clk 0:02:22]}  c4 {[%clk 0:02:05]} 23. b3 {[%clk 0:01:57]}  cxb3 {[%clk 0:01:55]} 24. Rxb3 {[%clk 0:01:58]}  Bf8 {[%clk 0:01:56]} 25. Rd1 {[%clk 0:01:51]}  Bb4 {[%clk 0:01:50]} 26. Nb5 {[%clk 0:01:34]}  Kg7 {[%clk 0:01:38]} 27. Rb2 {[%clk 0:01:17]}  Rc5 {[%clk 0:01:32]} 28. Rb3 {[%clk 0:00:51]}  Rc2 {[%clk 0:01:23]} 29. Rbd3 {[%clk 0:00:49]}  h4 {[%clk 0:01:18]} 30. Kh1 {[%clk 0:00:38]}  Nh5 {[%clk 0:01:14]} 31. Bb3 {[%clk 0:00:32]}  Rxd3 {[%clk 0:01:13]} 32. Bxc2 {[%clk 0:00:32]}  Re3 {[%clk 0:01:14]} 33. Bd3 {[%clk 0:00:21]}  h3 {[%clk 0:01:09]} 34. Bc4 {[%clk 0:00:15]}  hxg2+ {[%clk 0:00:48]} 35. Kxg2 {[%clk 0:00:16]}  Nf4+ {[%clk 0:00:49]} 36. Kg3 {[%clk 0:00:12]}  f5 {[%clk 0:00:40]} 37. exf5 {[%clk 0:00:11]}  gxf5 {[%clk 0:00:40]} 38. Kf2 {[%clk 0:00:06]}  Bc5 {[%clk 0:00:40]} 39. Kg3 {[%clk 0:00:07]}  Kf6 {[%clk 0:00:32]} 40. h4 {[%clk 0:00:05]}  e4 {[%clk 0:00:28]} 41. Rf1 {[%clk 0:00:05]}  Ke5 {[%clk 0:00:22]} 42. Bg8 {[%clk 0:00:02]}  Re2 {[%clk 0:00:17]} 43. fxe4 {[%clk 0:00:00]}  Rg2+ {[%clk 0:00:17]} 0-1


[Site "https://www.chess.com"]

[Event "Titled Tuesday Blitz June 13 Late 2023"]
[White "Katz, Alexander"]
[Black "Hansen, Eric"]
[WhiteFideId "2039796"]
[BlackFideId "2606771"]
[WhiteElo "2389"]
[BlackElo "2561"]
[Result "0-1"]
[Round "6"]
[TimeControl "180+2"]
[Date "2023.06.13"]
[WhiteClock "0:00:03"]
[BlackClock "0:01:55"]
[Board "20"]

1. e4 {[%clk 0:02:59]}  c5 {[%clk 0:03:00]} 2. Nf3 {[%clk 0:02:59]}  e6 {[%clk 0:03:00]} 3. c3 {[%clk 0:02:57]}  Nf6 {[%clk 0:03:00]} 4. e5 {[%clk 0:02:57]}  Nd5 {[%clk 0:03:01]} 5. d4 {[%clk 0:02:58]}  cxd4 {[%clk 0:03:02]} 6. cxd4 {[%clk 0:02:58]}  d6 {[%clk 0:03:02]} 7. Bc4 {[%clk 0:02:59]}  Be7 {[%clk 0:03:01]} 8. O-O {[%clk 0:02:58]}  O-O {[%clk 0:03:01]} 9. Qe2 {[%clk 0:02:59]}  b6 {[%clk 0:02:57]} 10. Nc3 {[%clk 0:02:53]}  Nxc3 {[%clk 0:02:55]} 11. bxc3 {[%clk 0:02:54]}  Bb7 {[%clk 0:02:55]} 12. Bf4 {[%clk 0:02:48]}  Qc7 {[%clk 0:02:50]} 13. Bd3 {[%clk 0:02:36]}  Nd7 {[%clk 0:02:49]} 14. Rfe1 {[%clk 0:01:59]}  Rac8 {[%clk 0:02:45]} 15. c4 {[%clk 0:01:49]}  Bxf3 {[%clk 0:02:36]} 16. Qxf3 {[%clk 0:01:46]}  dxe5 {[%clk 0:02:36]} 17. Bxe5 {[%clk 0:01:38]}  Nxe5 {[%clk 0:02:35]} 18. Rxe5 {[%clk 0:01:36]}  g6 {[%clk 0:02:27]} 19. Rae1 {[%clk 0:01:33]}  Rcd8 {[%clk 0:02:19]} 20. d5 {[%clk 0:01:26]}  Bb4 {[%clk 0:02:16]} 21. R1e3 {[%clk 0:00:48]}  Bc3 {[%clk 0:02:05]} 22. Rg5 {[%clk 0:00:32]}  Bd2 {[%clk 0:02:05]} 23. dxe6 {[%clk 0:00:15]}  Bxe3 {[%clk 0:02:03]} 24. Qxe3 {[%clk 0:00:14]}  Rfe8 {[%clk 0:01:57]} 25. Bxg6 {[%clk 0:00:03]}  fxg6 {[%clk 0:01:55]} 0-1


[Site "https://www.chess.com"]